bitfinex-derivatives/quotes_SOLF0:USTF0_20251228
["timestamp","ask_amount","ask_price","bid_price","bid_amount"]
[1766913336529,5.99255951,124.35,124.32,0.05152311]
[1766913337119,102.28785049,124.36,124.32,0.05152311]
[1766913337422,5.99253354,124.35,124.32,0.05152311]
[1766913338219,102.28785049,124.36,124.32,0.05152311]
[1766913377451,102.28785049,124.36,124.32,0.00152311]
[1766913387152,5.99466083,124.35,124.32,0.00152311]
[1766913402851,5.99466083,124.35,124.27,15.04073865]
[1766913403054,118.67286083,124.35,124.26,4.8]
[1766913403358,12.08077105,124.34,124.26,4.8]
[1766913403558,95.06,124.33,124.26,4.8]
[1766913403861,0.05611962,124.31,124.28,0.05298186]
[1766913404659,0.05611962,124.31,124.26,4.8]
[1766913404859,0.05611962,124.31,124.24,4.8]
[1766913405555,7.30191962,124.31,124.24,4.8]
[1766913405756,7.30191962,124.31,124.26,0.05760492]
[1766913406061,95.06,124.3,124.26,0.05760492]
[1766913418270,95.06,124.3,124.23,4.49]
[1766913419164,0.05843485,124.28,124.25,0.06185887]
[1766913420367,95.08,124.27,124.2,95.06]
[1766913420575,95.08,124.27,124.19,4.49]
[1766913421375,0.05406714,124.24,124.22,0.05404086]
[1766913422675,95.08,124.27,124.22,4.54404086]
[1766913422676,95.1,124.27,124.22,4.54404086]
[1766913423577,0.05085182,124.26,124.22,4.54404086]
[1766913428975,112.6961,124.33,124.22,4.54404086]
[1766913429278,102.3455,124.32,124.22,4.49]
[1766913430178,0.05630467,124.28,124.26,0.05956912]
[1766913430779,102.3455,124.32,124.26,0.05956912]
[1766913431784,0.05693986,124.3,124.26,0.05956912]
[1766913488030,0.05693986,124.3,124.26,4.36956912]
[1766913491530,6.06579639,124.3,124.26,4.36956912]
[1766913505650,0.05693986,124.3,124.26,4.36956912]
[1766913506040,6.06764602,124.3,124.26,4.36956912]
[1766913510248,0.05693986,124.3,124.26,4.36956912]
[1766913510752,6.06599376,124.3,124.26,4.36956912]
[1766913524578,0.04,124.35,124.26,4.36956912]
[1766913524772,0.04,124.35,124.26,4.31]
[1766913525676,0.05896814,124.32,124.29,0.05094518]
[1766913533072,4.40896814,124.32,124.25,11.3188]
[1766913533274,4.40896814,124.32,124.26,4.07]
[1766913534185,4.40896814,124.32,124.28,0.05167333]
[1766913586040,4.40896814,124.32,124.28,0.00167333]
[1766913586241,4.07,124.31,124.28,0.00167333]
[1766913605854,0.05896814,124.32,124.28,0.00167333]
[1766913606455,3.95896814,124.32,124.28,0.00167333]
[1766913616550,3.95896814,124.32,124.28,3.94167333]
[1766913617258,0.05896814,124.32,124.28,3.94167333]
[1766913618466,3.85,124.34,124.28,3.94167333]
[1766913618963,3.85,124.34,124.28,11.18897333]
[1766913619168,3.85,124.34,124.29,3.94]
[1766913619552,0.05780186,124.33,124.29,3.94]
[1766913620866,3.90780186,124.33,124.29,3.94]
[1766913639881,0.05780186,124.33,124.29,3.94]
[1766913640183,3.85,124.35,124.29,11.1867]
[1766913641075,0.05351008,124.33,124.31,0.05262645]
[1766913655487,0.00351008,124.33,124.31,0.05262645]
[1766913664985,0.00351008,124.33,124.31,3.76262645]
[1766913754697,0.00351008,124.33,124.31,0.05262645]
[1766913756696,0.00351008,124.33,124.31,3.41262645]
[1766913790713,0.00351008,124.33,124.31,0.05262645]
[1766913792716,0.00351008,124.33,124.31,3.39262645]
[1766913830650,0.00351008,124.33,124.31,0.05262645]
[1766913832751,0.00351008,124.33,124.31,3.60262645]
[1766913859782,0.00351008,124.33,124.31,0.05262645]
[1766913859984,3.44351008,124.33,124.27,3.56]
[1766913860182,3.44,124.33,124.27,98.6]
[1766913860887,0.05404422,124.31,124.29,0.05258542]
[1766913861088,0.05404422,124.31,124.27,98.6]
[1766913862085,0.05404422,124.31,124.28,0.05089004]
[1766913875398,3.44,124.3,124.25,98.64]
[1766913875802,3.44,124.3,124.25,3.56]
[1766913876501,0.06165516,124.29,124.26,0.05172014]
[1766913881210,0.06165516,124.29,124.26,3.61172014]
[1766913883410,0.00165516,124.29,124.26,3.61172014]
[1766913885105,10.5642,124.34,124.26,3.61172014]
[1766913885410,10.5642,124.34,124.26,3.56]
[1766913886009,0.00115019,124.31,124.29,3.32327048]
[1766913886316,10.5642,124.34,124.29,3.32327048]
[1766913887311,0.05206034,124.33,124.29,3.32327048]
[1766913895118,0.00206034,124.33,124.29,3.32327048]
[1766913898010,10.7131,124.36,124.29,3.32327048]
[1766913899212,0.05554488,124.34,124.29,3.32327048]
[1766913901522,10.7131,124.36,124.29,3.32327048]
[1766913901916,105.7919,124.38,124.3,3.26]
[1766913902117,3.47,124.37,124.3,3.26]
[1766913902625,0.05461162,124.35,124.32,3.31246958]
[1766913903020,105.7919,124.38,124.32,3.31246958]
[1766913903921,3.47,124.37,124.32,3.31246958]
[1766913904220,0.05100212,124.36,124.32,3.31246958]
[1766913911123,95.08,124.38,124.32,3.31246958]
[1766913911726,3.47,124.39,124.32,3.31246958]
[1766913912227,0.05164022,124.37,124.32,3.31246958]
[1766913926638,3.58164022,124.37,124.32,3.31246958]
[1766913927543,7.2429,124.36,124.32,3.31246958]
[1766913929839,10.7729,124.36,124.32,0.05246958]
[1766913938049,3.53,124.35,124.32,0.05246958]
[1766913938349,3.53,124.34,124.28,3.29]
[1766913939141,0.06023117,124.32,124.3,0.05412652]
[1766913951151,3.53,124.34,124.3,3.42412652]
[1766913952159,0.0577517,124.33,124.3,3.42412652]
[1766913953562,3.53,124.34,124.3,3.42412652]
[1766913953563,105.7732,124.36,124.3,3.42412652]
[1766913954765,0.05565462,124.34,124.3,3.42412652]
[1766913963472,10.5717,124.38,124.31,3.31]
[1766913964664,0.05580767,124.36,124.33,0.05070985]
[1766913965373,3.38580767,124.36,124.28,7.247]
[1766913965565,3.33,124.36,124.28,7.247]
[1766913966369,0.05912829,124.33,124.31,0.05606678]
[1766913973671,10.5716,124.38,124.31,3.36606678]
[1766913974580,0.05205047,124.36,124.31,3.36606678]
[1766914016000,3.53205047,124.36,124.31,3.36606678]
[1766914022614,3.53205047,124.36,124.31,10.61166678]
[1766914026226,3.53205047,124.36,124.32,3.28]
[1766914042938,3.53205047,124.36,124.29,3.42]
[1766914043239,3.48,124.36,124.28,3.42]
[1766914044042,0.05213417,124.33,124.31,0.05936255]
[1766914082579,0.00213417,124.33,124.31,3.28936255]
[1766914089584,0.00213417,124.33,124.29,3.23]
[1766914090589,0.00213417,124.33,124.3,0.0589413]
[1766914102384,3.41,124.37,124.3,3.5589413]
[1766914102794,9.38767425,124.37,124.3,3.5589413]
[1766914103295,0.05978891,124.35,124.3,3.5589413]
[1766914108506,0.05978891,124.35,124.3,10.8051413]
[1766914108706,0.05978891,124.35,124.31,3.5]
[1766914110008,3.41,124.37,124.31,3.5]
[1766914110904,0.06064693,124.35,124.33,0.05392351]
[1766914111503,0.06064693,124.35,124.33,3.55392351]
[1766914113497,0.00064693,124.35,124.33,3.55392351]
[1766914184673,0.00064693,124.35,124.33,0.05392351]
[1766914204388,0.00064693,124.35,124.33,3.32392351]
[1766914207685,0.00064693,124.35,124.31,3.27]
[1766914207887,3.24,124.36,124.31,3.27]
[1766914208093,3.24,124.35,124.29,3.27]
[1766914208688,0.05542568,124.33,124.31,0.05545946]
[1766914208891,0.05542568,124.33,124.29,2.44768361]
[1766914209895,0.05542568,124.33,124.3,0.05426685]
[1766914210692,7.30012568,124.33,124.29,2.44768361]
[1766914211692,7.30012568,124.33,124.3,0.05347025]
[1766914220512,0.05542568,124.33,124.3,0.05347025]
[1766914233422,0.05542568,124.33,124.3,3.25347025]
[1766914233923,95.06,124.35,124.3,3.25347025]
[1766914234118,95.06,124.37,124.3,3.25347025]
[1766914234314,98.34,124.37,124.3,3.2]
[1766914234822,0.05746777,124.35,124.32,3.25152008]
[1766914244638,98.34,124.37,124.32,3.25152008]
[1766914245740,0.05201355,124.36,124.32,3.25152008]
[1766914262566,98.77431355,124.37,124.32,3.25152008]
[1766914263665,0.02948043,124.36,124.32,3.25152008]
[1766914373566,10.52248043,124.36,124.32,0.05152008]
[1766914375557,10.7035,124.35,124.29,2.0]
[1766914375764,3.46,124.34,124.29,2.0]
[1766914376151,7.2447,124.33,124.29,2.0]
[1766914376355,3.46,124.32,124.26,2.0]
[1766914376663,0.05979181,124.3,124.28,0.05681956]
[1766914379862,3.46,124.32,124.28,2.05681956]
[1766914380255,7.2447,124.33,124.28,2.05681956]
[1766914380863,0.0212087,124.32,124.28,2.05681956]
[1766914388764,3.4812087,124.32,124.28,0.05681956]
[1766914391271,3.46,124.3,124.23,1.94]
[1766914392272,3.46,124.3,124.22,7.2505]
[1766914392273,0.06099217,124.28,124.25,0.0581813]
[1766914394766,0.06099217,124.28,124.24,1.94]
[1766914395677,0.06099217,124.28,124.25,0.0600239]
[1766914401993,3.31099217,124.28,124.22,1.94]
[1766914403095,3.31099217,124.28,124.24,0.05947339]
[1766914410200,10.55869217,124.28,124.24,0.05947339]
[1766914415797,105.65869217,124.28,124.24,0.05947339]
[1766914418111,95.16099217,124.28,124.24,1.99947339]
[1766914419607,95.16099217,124.28,124.24,0.05947339]
[1766914420012,98.41099217,124.28,124.24,0.05947339]
[1766914425010,0.06099217,124.28,124.24,2.00947339]
[1766914438422,0.06099217,124.28,124.24,9.25897339]
[1766914439123,0.06099217,124.28,124.25,1.94]
[1766914441921,3.41,124.32,124.26,1.88]
[1766914442917,0.05486458,124.3,124.28,0.0611271]
[1766914446214,3.46486458,124.3,124.28,0.0611271]
[1766914446417,3.46486458,124.3,124.28,0.0011271]
[1766914447227,3.46486458,124.3,124.23,1.94]
[1766914447427,3.41,124.3,124.23,1.94]
[1766914448133,0.0605872,124.28,124.25,0.05651875]
[1766914471755,3.5305872,124.28,124.25,0.05651875]
[1766914472760,3.5305872,124.28,124.22,9.1906]
[1766914472957,3.5305872,124.28,124.23,2.0]
[1766914473756,3.5305872,124.28,124.24,0.05902319]
[1766914476561,3.47,124.27,124.21,2.0]
[1766914477459,0.0604826,124.25,124.23,0.05760488]
[1766914530915,0.0004826,124.25,124.23,2.11760488]
[1766914540628,0.0004826,124.25,124.23,0.05760488]
[1766914541228,3.4004826,124.25,124.19,2.06]
[1766914542230,3.4004826,124.25,124.21,0.05823649]
[1766914545828,10.6498826,124.25,124.21,0.05823649]
[1766914546022,3.26,124.24,124.17,2.11]
[1766914547027,0.05474502,124.22,124.19,0.05646166]
[1766914559046,3.28474502,124.22,124.19,0.05646166]
[1766914561132,10.53594502,124.22,124.19,0.05646166]
[1766914561338,3.23,124.21,124.19,0.05646166]
[1766914562735,3.23,124.21,124.19,0.04659343]
[1766914562938,3.23,124.21,124.15,2.18]
[1766914563847,0.0575621,124.19,124.17,0.05367343]
[1766914565241,3.23,124.23,124.17,2.23367343]
[1766914566244,0.05858749,124.21,124.17,2.23367343]
[1766914575145,3.26,124.2,124.17,0.05367343]
[1766914575348,3.26,124.2,124.12,2.12]
[1766914575849,3.26,124.19,124.12,2.12]
[1766914576553,0.05776032,124.17,124.14,0.05366582]
[1766914579460,3.31776032,124.17,124.12,2.17]
[1766914579758,3.26,124.17,124.12,2.17]
[1766914580461,0.06168208,124.16,124.13,0.05308304]
[1766914584565,3.32168208,124.16,124.13,0.05308304]
[1766914586662,3.32168208,124.16,124.1,2.17]
[1766914587058,3.26,124.14,124.08,2.17]
[1766914587465,3.26,124.12,124.06,2.17]
[1766914587659,0.06120232,124.1,124.08,0.05317789]
[1766914588062,3.26,124.12,124.08,0.05317789]
[1766914588469,3.26,124.14,124.08,2.22317789]
[1766914588660,98.44,124.16,124.08,2.22317789]
[1766914588860,98.44,124.16,124.08,2.17]
[1766914589061,0.05456905,124.13,124.11,0.0605986]
[1766914601172,98.44,124.16,124.11,2.2305986]
[1766914602081,0.05678534,124.15,124.11,2.2305986]
[1766914604275,3.26,124.18,124.11,2.2305986]
[1766914605478,0.0533982,124.16,124.11,2.2305986]
[1766914609087,0.0533982,124.16,124.12,2.17]
[1766914612587,0.0033982,124.16,124.13,2.12]
[1766914615987,3.5333982,124.16,124.11,2.1805986]
[1766914617291,0.0033982,124.16,124.11,2.1805986]
[1766914617480,0.0033982,124.16,124.12,2.12]
[1766914622387,0.0033982,124.16,124.13,2.12]
[1766914635604,0.0033982,124.16,124.12,7.2567]
[1766914635905,0.0033982,124.16,124.11,2.1805986]
[1766914637605,0.0033982,124.16,124.12,2.12]
[1766914642104,0.0033982,124.16,124.11,7.3177986]
[1766914642403,0.0033982,124.16,124.11,9.4377986]
[1766914647100,0.0033982,124.16,124.12,2.12]
[1766914656214,0.0033982,124.16,124.12,9.3767]
[1766914690748,0.0033982,124.16,124.13,2.12]
[1766914697363,0.0033982,124.16,124.11,2.1805986]
[1766914698162,0.0033982,124.16,124.11,9.4378986]
[1766914698663,3.2533982,124.16,124.11,9.4378986]
[1766914705865,3.2533982,124.16,124.08,15.08269417]
[1766914706069,3.25,124.14,124.07,3.4]
[1766914706364,3.25,124.15,124.08,3.4]
[1766914707065,0.05816112,124.13,124.1,0.05474199]
[1766914707568,3.30816112,124.13,124.1,0.05474199]
[1766914707762,3.30816112,124.13,124.1,0.00474199]
[1766914707968,3.30816112,124.13,124.05,3.4]
[1766914708268,3.25,124.11,124.03,3.4]
[1766914709075,3.25,124.11,124.06,0.0581765]
[1766914710065,0.06123835,124.1,124.06,0.0581765]
[1766914710266,1.86433743,124.09,124.06,0.0581765]
[1766914720877,1.94123835,124.1,124.06,0.0581765]
[1766914725179,0.06123835,124.1,124.06,3.3481765]
[1766914728479,1.89,124.12,124.07,3.29]
[1766914728976,9.146,124.14,124.07,3.29]
[1766914729179,1.89,124.13,124.07,3.29]
[1766914729376,1.89,124.13,124.09,0.06071077]
[1766914729671,0.05118977,124.11,124.09,0.06071077]
[1766914729877,3.82460862,124.15,124.09,3.35071077]
[1766914730976,0.0570934,124.13,124.09,3.35071077]
[1766914731776,3.82460862,124.15,124.09,3.35071077]
[1766914732580,3.82460862,124.15,124.1,3.29]
[1766914732776,0.05455475,124.14,124.1,3.29]
[1766914736973,1.94455475,124.14,124.1,3.29]
[1766914737673,1.94455475,124.14,124.09,0.06071077]
[1766914738782,1.89,124.12,124.09,0.00071077]
[1766914740585,1.84,124.11,124.09,0.00071077]
[1766914740772,1.89236329,124.11,124.09,0.00071077]
[1766914741176,1.84,124.1,124.09,0.00071077]
[1766914741779,1.84,124.09,124.04,3.39]
[1766914742889,0.05271393,124.08,124.05,0.0603104]
[1766914744195,1.89271393,124.08,124.05,0.0603104]
[1766914749003,1.89271393,124.08,124.05,0.0003104]
[1766914750597,1.89271393,124.08,124.0,3.39]
[1766914750785,1.84,124.08,124.0,3.39]
[1766914751501,0.05504696,124.05,124.03,0.05717945]
[1766914751993,1.78504696,124.05,124.0,3.39]
[1766914752888,1.78504696,124.05,124.01,0.06009837]
[1766914753084,1.78504696,124.05,124.01,9.837e-05]
[1766914753297,1.67,124.04,123.98,3.39]
[1766914754393,0.05740054,124.02,124.0,0.0561502]
[1766914754796,1.66740054,124.02,123.97,3.15571242]
[1766914755502,8.93040054,124.02,123.97,3.15571242]
[1766914755998,8.93040054,124.02,123.98,0.06060172]
[1766914756397,1.66740054,124.02,123.98,0.06060172]
[1766914764017,112.9111,124.1,123.98,3.55060172]
[1766914764209,1.69,124.09,124.0,3.49]
[1766914764402,1.69,124.08,124.0,3.49]
[1766914764607,1.69,124.07,124.0,3.49]
[1766914764913,96.97,124.06,124.0,3.49]
[1766914765104,1.69,124.1,124.01,3.49]
[1766914765300,1.69,124.1,123.98,113.0081]
[1766914765301,1.69,124.1,124.03,3.49]
[1766914766209,1.69,124.1,124.05,0.05685889]
[1766914766512,0.0612025,124.08,124.05,0.05685889]
[1766914770112,1.7,124.12,124.05,3.54685889]
[1766914771010,0.05463718,124.1,124.05,3.54685889]
[1766914771212,1.7,124.12,124.05,3.54685889]
[1766914772117,0.05069715,124.1,124.05,3.54685889]
[1766914774015,1.81069715,124.1,124.05,3.54685889]
[1766914779819,0.05069715,124.1,124.05,3.54685889]
[1766914782723,1.77,124.14,124.05,3.54685889]
[1766914782924,1.77,124.14,124.07,3.23]
[1766914783518,0.06174579,124.12,124.09,0.05634851]
[1766914784625,0.06174579,124.12,124.09,3.28634851]
[1766914784924,1.77,124.14,124.09,3.28634851]
[1766914785730,0.05704245,124.13,124.09,3.28634851]
[1766914789341,0.05704245,124.13,124.09,0.05634851]
[1766914790340,1.88704245,124.13,124.09,0.05634851]
[1766914797346,1.78,124.12,124.07,3.39]
[1766914797647,1.78,124.12,124.05,3.31]
[1766914798346,0.05272471,124.1,124.07,0.06187396]
[1766914801753,1.83272471,124.1,124.07,0.06187396]
[1766914803854,0.05272471,124.1,124.07,0.06187396]
[1766914805855,1.84272471,124.1,124.07,0.06187396]
[1766914812462,1.84272471,124.1,124.05,3.31]
[1766914813450,1.84272471,124.1,124.06,0.05286092]
[1766914817966,0.05272471,124.1,124.06,3.31286092]
[1766914842486,1.85,124.15,124.06,3.31286092]
[1766914842688,1.85,124.14,124.06,3.26]
[1766914842890,1.85,124.13,124.06,3.26]
[1766914843587,0.05691049,124.11,124.08,3.31163264]
[1766914848790,0.05691049,124.11,124.08,0.05163264]
[1766914854279,0.05691049,124.11,124.08,3.34163264]
[1766914858898,1.83,124.14,124.08,3.34163264]
[1766914859093,13.6579894,124.14,124.08,3.34163264]
[1766914859299,5.96296943,124.13,124.08,3.34163264]
[1766914859596,1.83,124.14,124.08,3.34163264]
[1766914859794,0.0595559,124.12,124.08,3.34163264]
[1766914862902,1.9395559,124.12,124.08,0.05163264]
[1766914864597,9.1964559,124.12,124.08,0.05163264]
[1766914873914,0.0595559,124.12,124.08,3.34163264]
[1766914892635,7.2575,124.11,124.08,0.05163264]
[1766914892832,7.2575,124.11,124.02,95.24]
[1766914892833,1.8,124.09,124.02,3.26]
[1766914893134,1.8,124.08,124.02,3.26]
[1766914893332,7.75868767,124.08,124.02,3.26]
[1766914893535,1.8,124.08,124.02,3.26]
[1766914893738,7.74929394,124.08,124.02,3.26]
[1766914893932,0.05456402,124.06,124.04,0.0549417]
[1766914895934,0.00456402,124.06,124.04,3.3149417]
[1766914901437,0.00456402,124.06,124.04,0.0549417]
[1766914901743,0.00456402,124.06,124.02,3.26]
[1766914901940,1.85456402,124.06,124.02,3.26]
[1766914902137,1.85456402,124.06,123.98,3.26]
[1766914902341,1.85,124.06,123.98,3.26]
[1766914902645,1.85,124.06,124.01,0.06016589]
[1766914902646,0.05664909,124.03,124.01,0.06016589]
[1766914902946,1.85,124.06,124.01,3.32016589]
[1766914903849,0.05356397,124.05,124.01,3.32016589]
[1766914907254,0.00356397,124.05,124.01,3.32016589]
[1766914929767,1.94356397,124.05,124.01,0.06016589]
[1766914929967,0.00356397,124.05,124.01,3.57016589]
[1766914940575,1.88356397,124.05,123.97,3.15571242]
[1766914940779,1.88,124.04,123.97,3.15571242]
[1766914940975,1.88,124.03,123.97,3.15571242]
[1766914941181,1.88,124.02,123.97,3.15571242]
[1766914941373,1.88,124.01,123.97,3.15571242]
[1766914941775,0.05575072,124.0,123.98,0.05897032]
[1766914943077,95.28,124.02,123.98,0.05897032]
[1766914943276,95.28,124.02,123.98,3.47897032]
[1766914944068,0.05695012,124.01,123.98,3.47897032]
[1766914945079,95.28,124.02,123.98,3.47897032]
[1766914945885,0.05502503,124.01,123.98,3.47897032]
[1766914957789,95.3,124.03,123.98,3.47897032]
[1766914959193,9.3007,124.06,123.98,3.47897032]
[1766914959394,95.3,124.05,124.01,0.06111558]
[1766914959901,97.34,124.05,124.01,0.06111558]
[1766914960088,104.601,124.05,124.01,0.06111558]
[1766914963598,95.3,124.04,124.01,0.06111558]
[1766914964001,95.3,124.04,124.01,3.48111558]
[1766914964404,95.3,124.06,124.01,3.48111558]
[1766914970807,2.03,124.08,124.01,3.48111558]
[1766914971009,97.33,124.08,124.01,3.48111558]
[1766914971809,95.3,124.08,124.02,3.41]
[1766914971998,95.3,124.08,124.04,3.46836071]
[1766914973506,10.4989,124.09,124.04,3.46836071]
[1766914973708,105.7789,124.09,124.04,3.46836071]
[1766914979911,98.52,124.09,124.04,3.46836071]
[1766914981415,95.28,124.09,124.04,3.46836071]
[1766914981711,95.28,124.1,124.04,3.46836071]
[1766914983011,98.79,124.1,124.04,3.46836071]
[1766914983915,98.79,124.1,124.05,3.5]
[1766914984110,3.51,124.12,124.05,3.5]
[1766914984306,98.77,124.11,124.07,0.05504411]
[1766914990421,3.51,124.11,124.07,0.05504411]
[1766915002724,3.51,124.11,124.07,3.28504411]
[1766915002919,3.42,124.13,124.07,3.28504411]
[1766915003322,3.42,124.13,124.07,10.54464411]
[1766915013130,3.42,124.13,124.08,3.23]
[1766915022857,98.66,124.15,124.09,3.23]
[1766915023040,98.66,124.15,124.11,0.06000297]
[1766915023644,3.42,124.14,124.11,0.06000297]
[1766915035351,3.42,124.14,124.11,2.97e-06]
[1766915036352,3.47543217,124.14,124.11,2.97e-06]
[1766915036658,3.47,124.13,124.11,2.97e-06]
[1766915059889,0.05543217,124.14,124.11,2.97e-06]
[1766915060481,3.50543217,124.14,124.11,2.97e-06]
[1766915065495,0.05543217,124.14,124.11,2.97e-06]
[1766915073098,3.50543217,124.14,124.11,2.97e-06]
[1766915113329,3.38,124.13,124.05,3.4]
[1766915113529,98.6,124.12,124.05,3.4]
[1766915113826,3.38,124.11,124.05,3.4]
[1766915114424,0.05903196,124.09,124.07,0.05544959]
[1766915120032,3.38,124.11,124.07,1.67544959]
[1766915120234,3.38,124.11,124.07,0.05544959]
[1766915122441,95.22,124.12,124.07,10.59504959]
[1766915122937,98.61,124.12,124.07,10.59504959]
[1766915123542,3.39,124.11,124.07,10.59504959]
[1766915125437,3.39,124.11,124.07,3.33544959]
[1766915129148,3.39,124.11,124.07,0.05544959]
[1766915129346,3.39,124.11,124.04,95.22]
[1766915129641,3.39,124.11,124.04,98.5]
[1766915130435,95.22,124.12,124.04,98.5]
[1766915130436,0.05679952,124.09,124.06,0.05910234]
[1766915136148,3.44679952,124.09,124.06,0.05910234]
[1766915138757,0.05679952,124.09,124.06,0.05910234]
[1766915141858,3.44679952,124.09,124.06,0.05910234]
[1766915142057,3.44679952,124.09,124.04,3.28]
[1766915143057,3.44679952,124.09,124.05,0.0509241]
[1766915149573,3.44679952,124.09,124.05,0.0009241]
[1766915165878,0.05679952,124.09,124.05,3.4309241]
[1766915180787,3.56679952,124.09,124.05,0.0009241]
[1766915183098,0.05679952,124.09,124.05,0.0009241]
[1766915188701,0.05679952,124.09,124.05,3.5109241]
[1766915202418,0.05679952,124.09,124.05,10.7717241]
[1766915203213,0.05679952,124.09,124.06,3.51]
[1766915204813,0.05679952,124.09,124.05,7.2617241]
[1766915205014,0.05679952,124.09,124.05,10.6217241]
[1766915208415,0.05679952,124.09,124.06,3.36]
[1766915233336,3.50679952,124.09,124.05,0.0009241]
[1766915234929,3.26,124.08,124.05,0.0009241]
[1766915244442,0.05679952,124.09,124.05,0.0009241]
[1766915245843,0.05679952,124.09,124.05,3.2209241]
[1766915260657,3.31679952,124.09,124.05,0.0009241]
[1766915261854,3.26,124.08,124.05,0.0009241]
[1766915262053,98.52,124.07,124.05,0.0009241]
[1766915266365,95.26,124.07,124.05,0.0009241]
[1766915266952,3.36679952,124.09,124.05,0.0009241]
[1766915267157,95.26,124.08,124.05,0.0009241]
[1766915277167,98.74,124.08,124.05,0.0009241]
[1766915291992,3.48,124.08,124.05,0.0009241]
[1766915299410,0.05679952,124.09,124.05,0.0009241]
[1766915299604,3.49679952,124.09,124.05,0.0009241]
[1766915325422,3.49679952,124.09,124.05,3.4809241]
[1766915340436,3.49679952,124.09,124.05,10.7417241]
[1766915340637,3.34,124.11,124.05,10.7417241]
[1766915340837,3.34,124.11,124.05,3.4809241]
[1766915341728,0.05813558,124.09,124.05,3.4809241]
[1766915342638,0.05813558,124.09,124.06,10.7302]
[1766915342942,3.34,124.11,124.06,10.7302]
[1766915343539,3.34,124.11,124.07,3.47]
[1766915343936,0.05096676,124.1,124.08,0.06187158]
[1766915354552,101.43274033,124.13,124.08,0.06187158]
[1766915356048,98.58,124.13,124.08,0.06187158]
[1766915358252,3.44,124.12,124.08,0.06187158]
[1766915378469,3.44,124.11,124.08,0.00187158]
[1766915378973,3.44,124.11,124.03,10.7018]
[1766915379574,3.44,124.1,124.03,10.7018]
[1766915379869,3.44,124.1,124.05,0.05306552]
[1766915380069,3.499865,124.08,124.05,0.05306552]
[1766915380270,3.499865,124.08,124.05,0.00306552]
[1766915397587,3.32,124.1,124.05,3.23306552]
[1766915397782,3.32,124.1,124.05,3.23]
[1766915398590,0.05200658,124.09,124.06,0.053623]
[1766915401891,3.37200658,124.09,124.06,0.053623]
[1766915402193,3.37200658,124.09,124.03,3.23]
[1766915402383,3.37200658,124.09,124.01,3.23]
[1766915402579,3.32,124.09,124.01,3.23]
[1766915403181,0.05634619,124.06,124.04,0.05702438]
[1766915405493,3.37634619,124.06,124.04,0.05702438]
[1766915405696,3.37634619,124.06,124.01,3.23]
[1766915406792,3.37634619,124.06,124.02,0.06089114]
[1766915421612,3.27,124.05,123.99,1.83071932]
[1766915422502,3.27,124.05,124.01,0.05347448]
[1766915422700,0.06077437,124.03,124.01,0.05347448]
[1766915422900,0.06077437,124.03,123.98,98.66]
[1766915423911,3.33077437,124.03,123.99,0.05108434]
[1766915434330,3.33077437,124.03,123.99,3.45108434]
[1766915434927,0.06077437,124.03,123.99,3.45108434]
[1766915438024,0.06077437,124.03,123.99,10.71538434]
[1766915438224,0.06077437,124.03,124.0,3.4]
[1766915439628,3.27,124.08,124.01,3.4]
[1766915440531,0.05572381,124.06,124.03,0.05609099]
[1766915441530,0.05572381,124.06,124.03,3.45609099]
[1766915443835,0.05572381,124.06,124.03,0.05609099]
[1766915450041,3.52572381,124.06,124.03,0.05609099]
[1766915481262,10.78612381,124.06,123.99,10.524]
[1766915481454,3.26,124.05,123.97,101.67571242]
[1766915482164,3.26,124.05,123.98,3.26]
[1766915482361,0.06020031,124.03,124.0,0.05747925]
[1766915493473,0.06020031,124.03,124.0,10.58127925]
[1766915493675,3.26,124.06,124.01,3.26]
[1766915494665,0.05367993,124.05,124.01,10.5231]
[1766915505994,0.05367993,124.05,124.02,3.46]
[1766915506494,0.00367993,124.05,124.02,3.46]
[1766915506794,3.53,124.08,124.02,3.46]
[1766915507590,3.53,124.08,124.04,7.31561839]
[1766915508697,0.06018777,124.07,124.04,7.31561839]
[1766915511498,0.06018777,124.07,124.04,0.05421839]
[1766915511696,3.59018777,124.07,124.04,0.05421839]